bitfinex/quotes_ETHUSD_20250905
["timestamp","ask_amount","ask_price","bid_price","bid_amount"]
[1757113897742,18.15323624,4311.6,4311.5,4.0]
[1757113898401,2.3193784,4311.5,4311.4,3.845]
[1757113898602,2.81978596,4311.5,4311.4,3.845]
[1757113899203,4.04978596,4311.5,4311.4,3.845]
[1757113900740,8.27978596,4311.5,4311.4,3.845]
[1757113901651,13.54890551,4311.5,4311.4,3.845]
[1757113902138,9.50978596,4311.5,4311.4,3.845]
[1757113902318,9.50978596,4311.5,4311.4,7.0417]
[1757113903125,9.50978596,4311.5,4311.4,6.5827]
[1757113903320,10.73978596,4311.5,4311.4,6.5827]
[1757113903841,10.73978596,4311.5,4311.4,4.2692]
[1757113904640,11.96978596,4311.5,4311.4,4.2692]
[1757113905436,11.96978596,4311.5,4311.4,7.0417]
[1757113906123,13.19978596,4311.5,4311.4,7.0417]
[1757113906521,13.19978596,4311.5,4311.4,6.5827]
[1757113907542,14.42978596,4311.5,4311.4,6.5827]
[1757113909278,15.65978596,4311.5,4311.4,6.5827]
[1757113909938,12.84,4311.5,4311.4,7.0417]
[1757113910138,15.1593784,4311.5,4311.4,7.0417]
[1757113910738,16.3893784,4311.5,4311.4,7.0417]
[1757113911975,16.3893784,4311.5,4311.4,8.7477]
[1757113912174,17.6193784,4311.5,4311.4,8.7477]
[1757113913688,18.8493784,4311.5,4311.4,8.7477]
[1757113915058,20.0793784,4311.5,4311.4,8.7477]
[1757113916683,21.3093784,4311.5,4311.4,8.7477]
[1757113917547,21.3093784,4311.5,4311.4,8.2887]
[1757113917746,21.3093784,4311.5,4311.4,8.7477]
[1757113918174,22.5393784,4311.5,4311.4,8.7477]
[1757113918646,22.5393784,4311.5,4311.4,8.2887]
[1757113919461,23.7693784,4311.5,4311.4,8.2887]
[1757113920961,24.9993784,4311.5,4311.4,8.2887]
[1757113921186,24.9993784,4311.5,4311.4,5.6662]
[1757113922388,25.3070784,4311.5,4311.4,1.8212]
[1757113922555,25.3070784,4311.5,4311.4,5.6662]
[1757113922556,34.53010592,4311.5,4311.4,5.6662]
[1757113922758,32.26219795,4311.5,4311.4,5.6662]
[1757113923465,34.66839795,4311.5,4311.4,5.6662]
[1757113923950,35.89839795,4311.5,4311.4,5.6662]
[1757113925397,37.12839795,4311.5,4311.4,5.6662]
[1757113927712,38.22010592,4311.5,4311.4,5.6662]
[1757113928110,39.45010592,4311.5,4311.4,5.6662]
[1757113928895,37.18219795,4311.5,4311.4,5.6662]
[1757113929780,32.3793784,4311.5,4311.4,5.9711]
[1757113929981,32.3793784,4311.5,4311.4,8.9072]
[1757113931195,33.6093784,4311.5,4311.4,8.9072]
[1757113932728,34.8393784,4311.5,4311.4,8.9072]
[1757113934131,36.0693784,4311.5,4311.4,8.9072]
[1757113934710,30.75,4311.5,4311.4,8.792]
[1757113934916,30.751,4311.5,4311.4,11.2266322]
[1757113935117,30.751,4311.5,4311.4,8.9072]
[1757113935331,31.981,4311.5,4311.4,8.9072]
[1757113937048,33.211,4311.5,4311.4,8.9072]
[1757113938428,34.441,4311.5,4311.4,8.9072]
[1757113938625,34.441,4311.5,4311.4,5.0622]
[1757113938803,34.441,4311.5,4311.4,8.9062]
[1757113939707,35.671,4311.5,4311.4,8.9062]
[1757113941645,36.901,4311.5,4311.4,8.9062]
[1757113942019,36.901,4311.5,4311.4,8.4631]
[1757113943027,38.131,4311.5,4311.4,8.4631]
[1757113945354,39.361,4311.5,4311.4,8.4631]
[1757113946828,40.591,4311.5,4311.4,8.4631]
[1757113948153,41.821,4311.5,4311.4,8.4631]
[1757113949458,43.051,4311.5,4311.4,8.4631]
[1757113951161,44.281,4311.5,4311.4,8.4631]
[1757113951558,44.281,4311.5,4311.4,11.2256322]
[1757113951871,44.281,4311.5,4311.4,8.9062]
[1757113952573,45.511,4311.5,4311.4,8.4631]
[1757113953729,46.741,4311.5,4311.4,8.4631]
[1757113955180,47.971,4311.5,4311.4,10.7825322]
[1757113955476,47.971,4311.5,4311.4,8.4631]
[1757113956282,47.971,4311.5,4311.4,10.7825322]
[1757113956458,49.201,4311.5,4311.4,10.7825322]
[1757113956782,49.201,4311.5,4311.4,8.4631]
[1757113957356,49.201,4311.5,4311.4,10.7825322]
[1757113957555,49.201,4311.5,4311.4,5.9701]
[1757113958070,50.431,4311.5,4311.4,5.9701]
[1757113959248,51.661,4311.5,4311.4,5.9701]
[1757113960152,51.661,4311.5,4311.4,5.6652]
[1757113960351,51.9683,4311.5,4311.4,5.6652]
[1757113960567,53.6431,4311.5,4311.4,5.6652]
[1757113962250,54.4283,4311.5,4311.4,5.6652]
[1757113963590,56.1031,4311.5,4311.4,5.6652]
[1757113964777,55.6583,4311.5,4311.4,5.6652]
[1757113964982,56.8883,4311.5,4311.4,5.6652]
[1757113966290,58.1183,4311.5,4311.4,5.6652]
[1757113967352,57.811,4311.5,4311.4,5.6652]
[1757113967590,57.811,4311.5,4311.4,5.9566]
[1757113967757,59.041,4311.5,4311.4,5.9566]
[1757113967960,59.041,4311.5,4311.4,5.6652]
[1757113968158,59.3483,4311.5,4311.4,5.6652]
[1757113969089,59.041,4311.5,4311.4,10.6849322]
[1757113969251,60.271,4311.5,4311.4,10.6849322]
[1757113969856,60.271,4311.5,4311.4,8.3655]
[1757113970694,61.501,4311.5,4311.4,8.3655]
[1757113970991,61.501,4311.5,4311.4,10.6849322]
[1757113971467,61.501,4311.5,4311.4,11.1187322]
[1757113971867,62.731,4311.5,4311.4,11.1187322]
[1757113973477,63.961,4311.5,4311.4,11.1187322]
[1757113974766,65.191,4311.5,4311.4,11.1187322]
[1757113976263,66.421,4311.5,4311.4,11.1187322]
[1757113977075,66.421,4311.5,4311.4,11.9107322]
[1757113977711,67.651,4311.5,4311.4,11.9107322]
[1757113978926,68.881,4311.5,4311.4,11.9107322]
[1757113980275,70.111,4311.5,4311.4,11.9107322]
[1757113981728,71.341,4311.5,4311.4,11.4769322]
[1757113981883,71.341,4311.5,4311.4,11.9107322]
[1757113983014,72.571,4311.5,4311.4,11.9107322]
[1757113984495,73.801,4311.5,4311.4,11.9107322]
[1757113985886,75.031,4311.5,4311.4,11.4769322]
[1757113986192,75.031,4311.5,4311.4,11.9107322]
[1757113987525,76.261,4311.5,4311.4,11.9107322]
[1757113989258,77.491,4311.5,4311.4,11.9107322]
[1757113989550,77.491,4311.5,4311.4,11.4769322]
[1757113990756,78.721,4311.5,4311.4,11.4769322]
[1757113992544,79.951,4311.5,4311.4,11.4769322]
[1757113994151,81.181,4311.5,4311.4,11.4769322]
[1757113995712,82.411,4311.5,4311.4,11.4769322]
[1757113997115,83.641,4311.5,4311.4,11.4769322]
[1757113998256,83.641,4311.5,4311.4,9.0680322]
[1757113998564,84.871,4311.5,4311.4,9.0680322]
[1757114000130,86.101,4311.5,4311.4,9.0680322]
[1757114001651,87.331,4311.5,4311.4,9.0680322]
[1757114002863,88.561,4311.5,4311.4,9.0680322]
[1757114004457,89.791,4311.5,4311.4,9.0680322]
[1757114005868,91.021,4311.5,4311.4,9.0680322]
[1757114007250,92.251,4311.5,4311.4,9.0680322]
[1757114008897,93.481,4311.5,4311.4,8.7766322]
[1757114009198,96.5569,4311.5,4311.4,7.9826322]
[1757114009507,96.5569,4311.5,4311.4,5.6632]
[1757114009861,96.5569,4311.5,4311.4,1.8212]
[1757114010092,96.5569,4311.5,4311.4,5.6632]
[1757114010284,102.37418637,4311.5,4311.4,5.6632]
[1757114011777,103.60418637,4311.5,4311.4,5.6632]
[1757114011976,101.28480797,4311.5,4311.4,5.6632]
[1757114012373,103.60418637,4311.5,4311.4,5.6632]
[1757114013098,104.83418637,4311.5,4311.4,5.6632]
[1757114014480,106.06418637,4311.5,4311.4,5.6632]
[1757114015774,107.29418637,4311.5,4311.4,5.6632]
[1757114015977,105.0262784,4311.5,4311.4,5.6632]
[1757114017305,106.2562784,4311.5,4311.4,5.6632]
[1757114018611,107.4862784,4311.5,4311.4,5.6632]
[1757114019886,108.7162784,4311.5,4311.4,5.6632]
[1757114021229,109.9462784,4311.5,4311.4,5.6632]
[1757114021924,107.6269,4311.5,4311.4,5.6632]
[1757114022126,109.9462784,4311.5,4311.4,5.6632]
[1757114022816,111.1762784,4311.5,4311.4,5.6632]
[1757114024098,115.4062784,4311.5,4311.4,1.8212]
[1757114024306,115.4062784,4311.5,4311.4,5.6642]
[1757114025403,116.6362784,4311.5,4311.4,5.6642]
[1757114026822,117.8662784,4311.5,4311.4,5.6642]
[1757114028295,119.0962784,4311.5,4311.4,5.6642]
[1757114029140,121.36418637,4311.5,4311.4,5.6642]
[1757114029728,122.59418637,4311.5,4311.4,5.6642]
[1757114031031,123.82418637,4311.5,4311.4,5.6642]
[1757114033340,125.05418637,4311.5,4311.4,5.6642]
[1757114034772,126.28418637,4311.5,4311.4,5.6642]
[1757114034970,126.28418637,4311.5,4311.4,1.8212]
[1757114035167,126.28418637,4311.5,4311.4,5.6642]
[1757114036026,127.51418637,4311.5,4311.4,5.6642]
[1757114037660,128.74418637,4311.5,4311.4,5.6642]
[1757114038936,129.97418637,4311.5,4311.4,5.6642]
[1757114040373,131.20418637,4311.5,4311.4,5.6642]
[1757114042033,132.43418637,4311.5,4311.4,5.6642]
[1757114043167,129.35828637,4311.5,4311.4,5.9598]
[1757114043549,130.58828637,4311.5,4311.4,5.9598]
[1757114043939,130.58828637,4311.5,4311.4,5.6642]
[1757114044136,128.3203784,4311.5,4311.4,5.6642]
[1757114044535,128.6129784,4311.5,4311.4,5.6642]
[1757114044731,129.0749784,4311.5,4311.4,5.6642]
[1757114044959,130.3049784,4311.5,4311.4,5.6642]
[1757114046375,131.5349784,4311.5,4311.4,5.6642]
[1757114046543,131.0729784,4311.5,4311.4,5.6642]
[1757114048349,133.27003893,4311.5,4311.4,5.6642]
[1757114048671,134.50003893,4311.5,4311.4,5.6642]
[1757114049976,135.73003893,4311.5,4311.4,5.6642]
[1757114051441,137.42563893,4311.5,4311.4,5.6642]
[1757114053083,138.65563893,4311.5,4311.4,5.6642]
[1757114053303,139.15614799,4311.5,4311.4,5.6642]
[1757114054877,140.38614799,4311.5,4311.4,5.6642]
[1757114056487,141.61614799,4311.5,4311.4,5.6642]
[1757114057690,144.00934799,4311.5,4311.4,5.6642]
[1757114058014,145.23934799,4311.5,4311.4,5.6642]
[1757114059205,150.50692098,4311.5,4311.4,5.6642]
[1757114059506,151.73692098,4311.5,4311.4,5.6642]
[1757114060707,152.96692098,4311.5,4311.4,5.6642]
[1757114062208,154.19692098,4311.5,4311.4,5.6642]
[1757114063504,155.42692098,4311.5,4311.4,5.6642]
[1757114064275,155.42692098,4311.5,4311.4,1.8212]
[1757114064480,155.42692098,4311.5,4311.4,5.6642]
[1757114065489,146.04088746,4311.5,4311.4,8.6225]
[1757114065694,146.04088746,4311.5,4311.4,8.7377]
[1757114066489,146.04088746,4311.5,4311.4,8.2843]
[1757114066894,147.27088746,4311.5,4311.4,8.2843]
[1757114067700,147.27088746,4311.5,4311.4,5.9688]
[1757114068518,147.27088746,4311.5,4311.4,8.2843]
[1757114068519,146.7703784,4311.5,4311.4,8.2843]
[1757114068720,148.0003784,4311.5,4311.4,8.2843]
[1757114068923,148.0003784,4311.5,4311.4,4.2628]
[1757114070829,148.0003784,4311.5,4311.4,6.4631]
[1757114070991,149.2303784,4311.5,4311.4,7.0317]
[1757114072026,149.2303784,4311.5,4311.4,6.5783]
[1757114072388,150.4603784,4311.5,4311.4,6.5783]
[1757114074195,151.6903784,4311.5,4311.4,6.5783]
[1757114076214,152.9203784,4311.5,4311.4,6.5783]
[1757114077126,152.9203784,4311.5,4311.4,7.0317]
[1757114077716,154.1503784,4311.5,4311.4,7.0317]
[1757114077925,154.1503784,4311.5,4311.4,6.5783]
[1757114078427,154.1503784,4311.5,4311.4,4.2628]
[1757114078805,154.1503784,4311.5,4311.4,3.9582]
[1757114079000,154.4540784,4311.5,4311.4,3.9582]
[1757114079206,155.6840784,4311.5,4311.4,3.9582]
[1757114079430,155.3803784,4311.5,4311.4,3.9582]
[1757114080508,156.6103784,4311.5,4311.4,3.9582]
[1757114080893,156.9216784,4311.5,4311.4,3.9582]
[1757114081207,156.6103784,4311.5,4311.4,3.9582]
[1757114082329,157.8403784,4311.5,4311.4,3.9582]
[1757114082831,157.8403784,4311.5,4311.4,4.2551]
[1757114083419,157.8403784,4311.5,4311.4,3.9582]
[1757114083595,159.8398784,4311.5,4311.4,3.9582]
[1757114084212,159.3816784,4311.5,4311.4,3.9582]
[1757114084630,159.0703784,4311.5,4311.4,3.9582]
[1757114084933,160.3003784,4311.5,4311.4,3.9582]
[1757114085503,164.77670316,4311.5,4311.4,3.9582]
[1757114086936,166.00670316,4311.5,4311.4,3.9582]
[1757114087717,166.77620316,4311.5,4311.4,3.9582]
[1757114088340,168.00620316,4311.5,4311.4,3.9582]
[1757114088943,172.19901113,4311.5,4311.4,0.1152]
[1757114089129,173.15757649,4311.5,4311.4,3.9582]
[1757114089545,174.38757649,4311.5,4311.4,3.9582]
[1757114090937,175.61757649,4311.5,4311.4,3.9582]
[1757114092330,176.84757649,4311.5,4311.4,3.9582]
[1757114093831,178.07757649,4311.5,4311.4,3.9582]
[1757114095156,179.30757649,4311.5,4311.4,3.9582]
[1757114096556,180.53757649,4311.5,4311.4,3.9582]
[1757114096853,178.15447649,4311.5,4311.4,3.9582]
[1757114098757,179.38447649,4311.5,4311.4,3.9582]
[1757114100056,180.61447649,4311.5,4311.4,3.9582]
[1757114101455,181.84447649,4311.5,4311.4,3.9582]
[1757114103071,183.07447649,4311.5,4311.4,3.9582]
[1757114104367,184.30447649,4311.5,4311.4,3.9582]
[1757114105866,185.53447649,4311.5,4311.4,3.9582]
[1757114106836,172.201,4311.5,4311.4,6.8639]
[1757114107067,169.701,4311.5,4311.4,6.8639]
[1757114107236,170.931,4311.5,4311.4,6.8639]
[1757114108741,172.161,4311.5,4311.4,6.8639]
[1757114110240,173.391,4311.5,4311.4,6.8639]
[1757114110844,173.391,4311.5,4311.4,9.1833322]
[1757114111276,173.391,4311.5,4311.4,6.8639]
[1757114111483,174.621,4311.5,4311.4,6.8639]
[1757114112791,175.851,4311.5,4311.4,6.8639]
[1757114113704,175.851,4311.5,4311.4,6.8629]
[1757114114379,177.081,4311.5,4311.4,6.8629]
[1757114115054,177.081,4311.5,4311.4,9.1823322]
[1757114115672,178.311,4311.5,4311.4,9.1823322]
[1757114116372,178.311,4311.5,4311.4,0.2969]
[1757114116574,180.6303784,4311.5,4311.4,0.2969]
[1757114116893,2.3194322,4311.4,4311.3,0.004]
[1757114117062,2.3194322,4311.4,4311.3,3.846]
[1757114117267,2.6091322,4311.4,4311.3,3.9612]
[1757114117789,2.3194322,4311.4,4311.3,3.9612]
[1757114118284,2.3194322,4311.4,4311.3,4.266]
[1757114118490,3.5494322,4311.4,4311.3,4.266]
[1757114119407,1.23,4311.4,4311.3,4.266]
[1757114119762,3.5494322,4311.4,4311.3,4.266]
[1757114119999,4.7794322,4311.4,4311.3,4.266]
[1757114121588,4.7794322,4311.4,4311.3,3.9612]
[1757114121789,12.0112322,4311.4,4311.3,0.1192]
[1757114121997,12.0112322,4311.4,4311.3,3.9612]
[1757114123155,13.2412322,4311.4,4311.3,3.9612]
[1757114124566,14.4712322,4311.4,4311.3,3.9612]
[1757114125296,14.4712322,4311.4,4311.3,0.1192]
[1757114125490,15.65825503,4311.4,4311.3,3.9612]
[1757114125891,16.88825503,4311.4,4311.3,3.9612]
[1757114126297,15.7012322,4311.4,4311.3,3.9612]
[1757114127271,16.9312322,4311.4,4311.3,3.9612]
[1757114129108,18.1612322,4311.4,4311.3,3.9612]
[1757114130310,19.3912322,4311.4,4311.3,3.9612]
[1757114131803,20.6212322,4311.4,4311.3,3.9612]
[1757114132310,20.6212322,4311.4,4311.3,0.1192]
[1757114132499,20.6212322,4311.4,4311.3,3.9612]
[1757114132998,21.8512322,4311.4,4311.3,3.9612]
[1757114133199,24.11914017,4311.4,4311.3,3.9612]
[1757114133404,21.11734017,4311.4,4311.3,3.9612]
[1757114133715,24.11914017,4311.4,4311.3,3.9612]
[1757114134375,25.34914017,4311.4,4311.3,3.9612]
[1757114135880,26.57914017,4311.4,4311.3,3.9612]
[1757114136220,28.78755696,4311.4,4311.3,3.9612]
[1757114137424,30.01755696,4311.4,4311.3,3.9612]
[1757114138980,31.24755696,4311.4,4311.3,3.9612]
[1757114140794,32.47755696,4311.4,4311.3,0.1192]
[1757114141183,32.97726104,4311.4,4311.3,3.705]
[1757114141379,35.24516901,4311.4,4311.3,3.705]
[1757114142208,36.47516901,4311.4,4311.3,3.705]
[1757114143606,37.70516901,4311.4,4311.3,3.705]
[1757114144326,37.27336901,4311.4,4311.3,3.705]
[1757114144511,32.43546104,4311.4,4311.3,4.1291]
[1757114144704,32.43546104,4311.4,4311.3,3.8202]
[1757114144905,32.72506104,4311.4,4311.3,3.8202]
[1757114145129,33.95506104,4311.4,4311.3,3.8202]
[1757114145524,34.74779033,4311.4,4311.3,3.8202]
[1757114145704,34.45819033,4311.4,4311.3,3.8202]
[1757114145897,28.6894322,4311.4,4311.3,4.0139]
[1757114146148,28.6894322,4311.4,4311.3,6.8938]
[1757114146643,29.9194322,4311.4,4311.3,6.8938]
[1757114147439,29.9194322,4311.4,4311.3,4.5692]
[1757114147604,29.9194322,4311.4,4311.3,4.1291]
[1757114147804,29.9194322,4311.4,4311.3,4.5692]
[1757114148141,31.1494322,4311.4,4311.3,4.5692]
[1757114148338,28.83,4311.4,4311.3,6.8938]
[1757114149507,27.06,4311.4,4311.3,9.213286]
[1757114149713,27.06,4311.4,4311.3,10.005286]
[1757114150934,28.29,4311.4,4311.3,10.005286]
[1757114151743,60.80022995,4311.5,4311.4,8.5524322]
[1757114151943,60.80022995,4311.5,4311.4,8.8613322]
[1757114152142,60.80022995,4311.5,4311.4,11.6260322]
[1757114152349,60.80022995,4311.5,4311.4,9.1850322]
[1757114153228,60.80022995,4311.5,4311.4,9.58744037]
[1757114153814,60.80022995,4311.5,4311.4,49.18844037]
[1757114155263,62.03022995,4311.5,4311.4,49.18844037]
[1757114156455,63.26022995,4311.5,4311.4,49.18844037]
[1757114157911,64.49022995,4311.5,4311.4,49.18844037]
[1757114159573,65.72022995,4311.5,4311.4,49.18844037]
[1757114160346,65.72022995,4311.5,4311.4,53.03344037]
[1757114161153,66.95022995,4311.5,4311.4,53.03344037]
[1757114161721,66.95122995,4311.5,4311.4,53.03344037]
[1757114162361,68.18122995,4311.5,4311.4,53.03344037]
[1757114163857,69.41122995,4311.5,4311.4,53.03344037]
[1757114165471,70.64122995,4311.5,4311.4,53.03344037]
[1757114166342,70.64122995,4311.5,4311.4,50.70884037]
[1757114166542,70.64122995,4311.5,4311.4,50.26874037]
[1757114166749,70.93082995,4311.5,4311.4,0.40240817]
[1757114166957,72.16082995,4311.5,4311.4,4.24840817]
[1757114167154,71.87122995,4311.5,4311.4,4.24840817]
[1757114167341,71.87122995,4311.5,4311.4,5.04040817]
[1757114167941,71.87122995,4311.5,4311.4,7.35984037]
[1757114168364,73.10122995,4311.5,4311.4,7.35984037]
[1757114168549,73.10122995,4311.5,4311.4,5.04040817]
[1757114169750,74.33122995,4311.5,4311.4,5.04040817]
[1757114170569,74.63512995,4311.5,4311.4,5.04040817]
[1757114171239,75.56122995,4311.5,4311.4,5.04040817]
[1757114172748,76.79122995,4311.5,4311.4,5.04040817]
[1757114173964,78.02122995,4311.5,4311.4,5.04040817]
[1757114175565,79.25122995,4311.5,4311.4,5.04040817]
[1757114177044,80.48122995,4311.5,4311.4,5.04040817]
[1757114178372,81.71122995,4311.5,4311.4,5.04040817]
[1757114179740,82.94122995,4311.5,4311.4,5.04040817]
[1757114181368,84.17122995,4311.5,4311.4,5.04040817]
[1757114181777,84.17122995,4311.5,4311.4,5.04040817]
[1757114181968,84.17122995,4311.5,4311.4,10.37140817]
[1757114182472,84.17122995,4311.5,4311.4,10.66820817]
[1757114182649,85.40122995,4311.5,4311.4,10.66820817]
[1757114182978,85.40122995,4311.5,4311.4,10.36940817]
[1757114184048,86.63122995,4311.5,4311.4,16.37010817]
[1757114184251,86.63122995,4311.5,4311.4,16.48530817]
[1757114184478,86.63122995,4311.5,4311.4,18.80474037]
[1757114184853,86.63122995,4311.5,4311.4,58.40574037]
[1757114185387,87.86122995,4311.5,4311.4,58.40574037]
[1757114187000,89.09122995,4311.5,4311.4,58.40574037]
[1757114187155,89.09122995,4311.5,4311.4,56.13604037]
[1757114188581,90.32122995,4311.5,4311.4,56.13604037]
[1757114189990,91.55122995,4311.5,4311.4,56.13604037]
[1757114190595,91.55122995,4311.5,4311.4,55.70384037]
[1757114191882,92.78122995,4311.5,4311.4,55.70384037]
[1757114192666,95.91442995,4311.5,4311.4,50.76904037]
[1757114192868,95.91442995,4311.5,4311.4,54.61304037]
[1757114193072,95.91442995,4311.5,4311.4,55.40504037]
[1757114193273,97.14442995,4311.5,4311.4,55.40504037]
[1757114193671,96.67972995,4311.5,4311.4,55.40504037]
[1757114193876,96.67972995,4311.5,4311.4,15.80404037]
[1757114194959,97.90972995,4311.5,4311.4,15.80404037]
[1757114195786,98.37442995,4311.5,4311.4,15.80404037]
[1757114195984,97.90972995,4311.5,4311.4,15.80404037]
[1757114196185,98.37442995,4311.5,4311.4,15.80404037]
[1757114196386,99.60442995,4311.5,4311.4,15.80404037]
[1757114197765,100.83442995,4311.5,4311.4,15.80404037]
[1757114199298,102.06442995,4311.5,4311.4,15.80404037]
[1757114199998,101.59972995,4311.5,4311.4,15.80404037]
[1757114200177,99.23512995,4311.5,4311.4,15.80404037]
[1757114200690,100.46512995,4311.5,4311.4,15.80404037]
[1757114201379,100.16122995,4311.5,4311.4,15.80404037]
[1757114202515,101.39122995,4311.5,4311.4,15.80404037]
[1757114203910,101.39122995,4311.5,4311.4,11.96004037]
[1757114204086,102.92482995,4311.5,4311.4,15.80304037]
[1757114205630,104.15482995,4311.5,4311.4,15.80304037]
[1757114206896,105.38482995,4311.5,4311.4,15.80304037]
[1757114208890,106.31122995,4311.5,4311.4,16.11714037]
[1757114209091,106.31122995,4311.5,4311.4,18.87994037]
[1757114209914,106.31122995,4311.5,4311.4,58.48094037]
[1757114210223,106.31122995,4311.5,4311.4,56.18644037]
[1757114210416,107.54122995,4311.5,4311.4,56.18644037]
[1757114211820,108.77122995,4311.5,4311.4,56.18644037]
[1757114213423,110.00122995,4311.5,4311.4,58.48094037]
[1757114214192,110.00122995,4311.5,4311.4,58.36574037]
[1757114214415,110.00122995,4311.5,4311.4,58.48094037]
[1757114214619,111.23122995,4311.5,4311.4,58.48094037]
[1757114216023,112.46122995,4311.5,4311.4,58.48094037]
[1757114217431,113.69122995,4311.5,4311.4,58.48094037]
[1757114217805,113.69122995,4311.5,4311.4,52.34344037]
[1757114218007,113.69122995,4311.5,4311.4,56.18744037]
[1757114219129,114.92122995,4311.5,4311.4,56.18744037]
[1757114219437,114.92122995,4311.5,4311.4,63.35744037]
[1757114220030,114.92122995,4311.5,4311.4,56.18744037]
[1757114220900,116.15122995,4311.5,4311.4,56.18744037]
[1757114221429,116.15122995,4311.5,4311.4,55.71914037]
[1757114221635,116.15122995,4311.5,4311.4,58.01364037]
[1757114221836,116.15122995,4311.5,4311.4,58.48194037]
[1757114222338,117.38122995,4311.5,4311.4,58.48194037]
[1757114223207,116.38440364,4311.5,4311.4,58.48194037]
[1757114223735,116.86299934,4311.5,4311.4,58.48194037]
[1757114224222,116.86299934,4311.5,4311.4,56.18744037]
[1757114224931,116.86299934,4311.5,4311.4,55.71914037]
[1757114225101,118.09299934,4311.5,4311.4,55.71914037]
[1757114225834,118.09299934,4311.5,4311.4,55.3167322]
[1757114226532,119.32299934,4311.5,4311.4,55.7850322]
[1757114227814,120.55299934,4311.5,4311.4,58.0795322]
[1757114229030,121.32440035,4311.5,4311.4,58.0795322]
[1757114229237,119.86434105,4311.5,4311.4,58.0795322]
[1757114229634,119.86434105,4311.5,4311.4,55.7850322]
[1757114229817,119.86434105,4311.5,4311.4,55.3167322]
[1757114230536,121.09434105,4311.5,4311.4,55.7749322]
[1757114231739,122.32434105,4311.5,4311.4,55.7749322]
[1757114232743,94.80877578,4311.5,4311.4,55.7749322]
[1757114233293,77.69494058,4311.5,4311.4,55.3167322]
[1757114233542,77.34728621,4311.5,4311.4,67.7612322]
[1757114233953,76.99963184,4311.5,4311.4,67.7612322]
[1757114234355,77.88197747,4311.5,4311.4,67.7612322]
[1757114234720,77.5343231,4311.5,4311.4,67.7612322]
[1757114235041,77.18666873,4311.5,4311.4,67.9931322]
[1757114235253,76.18534834,4311.5,4311.4,67.9931322]
[1757114235541,75.83769397,4311.5,4311.4,67.9931322]
[1757114235725,77.06769397,4311.5,4311.4,67.9931322]
[1757114236043,76.7200396,4311.5,4311.4,67.9931322]
[1757114236348,76.37243115,4311.5,4311.4,65.6158322]
[1757114236844,76.0248227,4311.5,4311.4,61.7738322]
[1757114237016,76.90721425,4311.5,4311.4,65.6148322]
[1757114237414,76.5596058,4311.5,4311.4,65.6148322]
[1757114237847,76.21199735,4311.5,4311.4,65.6148322]
[1757114238140,76.21199735,4311.5,4311.4,61.7738322]
[1757114238311,77.0943889,4311.5,4311.4,61.7738322]
[1757114238510,77.0943889,4311.5,4311.4,61.3156322]
[1757114238710,76.74678045,4311.5,4311.4,65.6148322]
[1757114239013,76.399172,4311.5,4311.4,65.6148322]
[1757114239467,76.05156355,4311.5,4311.4,65.6148322]
[1757114239680,77.28156355,4311.5,4311.4,65.6148322]
[1757114239890,76.9339551,4311.5,4311.4,65.6148322]
[1757114240386,76.58634665,4311.5,4311.4,65.6148322]
[1757114240685,76.2387382,4311.5,4311.4,65.1566322]
[1757114241035,77.12112975,4311.5,4311.4,65.1566322]
[1757114241387,76.12117931,4311.5,4311.4,65.6148322]
[1757114241681,75.77357086,4311.5,4311.4,65.6148322]
[1757114241847,75.42596241,4311.5,4311.4,65.6148322]
[1757114242353,76.30835396,4311.5,4311.4,65.6148322]
[1757114242702,75.96074551,4311.5,4311.4,65.6148322]
[1757114243158,75.61313706,4311.5,4311.4,65.6148322]
[1757114243590,75.26552861,4311.5,4311.4,65.1566322]
[1757114243741,76.49552861,4311.5,4311.4,65.1566322]
[1757114243942,76.14792016,4311.5,4311.4,65.1566322]
[1757114244371,75.80031171,4311.5,4311.4,65.1566322]
[1757114244579,76.08931171,4311.5,4311.4,64.8415322]
[1757114244742,78.87251171,4311.5,4311.4,64.8415322]
[1757114245256,79.62951171,4311.5,4311.4,50.5985322]
[1757114245442,77.03031171,4311.5,4311.4,61.6817322]
[1757114245646,77.03031171,4311.5,4311.4,62.4737322]
[1757114246045,77.03031171,4311.5,4311.4,62.1696322]
[1757114246395,77.03031171,4311.5,4311.4,62.4015322]
[1757114246589,78.26031171,4311.5,4311.4,62.4015322]
[1757114246763,78.54931171,4311.5,4311.4,62.4015322]
[1757114247110,80.33155134,4311.5,4311.4,62.4015322]
[1757114247319,79.85855134,4311.5,4311.4,62.4015322]
[1757114247987,81.08855134,4311.5,4311.4,62.4015322]
[1757114248715,81.08855134,4311.5,4311.4,55.2315322]
[1757114249079,81.28855134,4311.5,4311.4,55.2315322]
[1757114249581,82.51855134,4311.5,4311.4,55.2315322]
[1757114250337,79.91935134,4311.5,4311.4,55.5356322]
[1757114250614,79.91935134,4311.5,4311.4,58.4328322]
[1757114251470,81.14935134,4311.5,4311.4,58.4328322]
[1757114252596,81.14935134,4311.5,4311.4,57.9746322]
[1757114252797,82.37935134,4311.5,4311.4,64.3696322]
[1757114253181,81.37809759,4311.5,4311.4,64.3696322]
[1757114254105,82.60809759,4311.5,4311.4,64.3696322]
[1757114255723,83.83809759,4311.5,4311.4,64.3696322]
[1757114257003,85.06809759,4311.5,4311.4,64.3696322]
[1757114257715,85.06809759,4311.5,4311.4,64.0655322]
[1757114258616,85.06809759,4311.5,4311.4,64.3696322]
[1757114258829,86.29809759,4311.5,4311.4,64.3696322]
[1757114259124,85.29679057,4311.5,4311.4,64.3696322]
[1757114260121,85.29679057,4311.5,4311.4,64.0655322]
[1757114260425,86.82879057,4311.5,4311.4,64.0655322]
[1757114260786,89.65279057,4311.5,4311.4,64.0655322]
[1757114261121,89.22039057,4311.5,4311.4,64.0655322]
[1757114261532,86.52679057,4311.5,4311.4,64.0655322]
[1757114261698,87.75679057,4311.5,4311.4,64.0655322]
[1757114262593,87.75679057,4311.5,4311.4,64.3657322]
[1757114262786,87.75679057,4311.5,4311.4,64.8292322]
[1757114263190,88.98679057,4311.5,4311.4,64.3657322]
[1757114264701,90.21679057,4311.5,4311.4,64.3657322]
[1757114265244,89.21546018,4311.5,4311.4,64.3657322]
[1757114265742,89.21546018,4311.5,4311.4,64.0655322]
[1757114265965,90.44546018,4311.5,4311.4,64.0655322]
[1757114266830,90.44546018,4311.5,4311.4,71.2355322]